[Event "Titled Tuesday Blitz March 28 Early 2023"]
[White "Erigaisi Arjun"]
[Black "Dominguez Perez, Leinier"]
[WhiteFideId "35009192"]
[BlackFideId "3503240"]
[WhiteElo "2737"]
[BlackElo "2647"]
[Result "1-0"]
[Round "08"]
[TimeControl "180+2"]
[Date "2023.03.28"]
[WhiteClock "0:00:37"]
[BlackClock "0:00:05"]

1. c4 {[%clk 0:03:00]}  c5 {[%clk 0:02:59]} 2. Nc3 {[%clk 0:03:00]}  g6 {[%clk 0:02:59]} 3. g3 {[%clk 0:03:00]}  Bg7 {[%clk 0:02:59]} 4. Bg2 {[%clk 0:03:01]}  Nc6 {[%clk 0:02:59]} 5. d3 {[%clk 0:03:01]}  d6 {[%clk 0:03:00]} 6. Qd2 {[%clk 0:02:59]}  e6 {[%clk 0:03:00]} 7. b3 {[%clk 0:02:59]}  Nge7 {[%clk 0:03:00]} 8. Bb2 {[%clk 0:03:00]}  O-O {[%clk 0:02:57]} 9. h4 {[%clk 0:03:00]}  h6 {[%clk 0:02:56]} 10. e3 {[%clk 0:03:00]}  d5 {[%clk 0:02:41]} 11. Nge2 {[%clk 0:02:58]}  b6 {[%clk 0:02:35]} 12. h5 {[%clk 0:02:56]}  g5 {[%clk 0:02:35]} 13. f4 {[%clk 0:02:56]}  g4 {[%clk 0:02:35]} 14. O-O {[%clk 0:02:48]}  f5 {[%clk 0:02:26]} 15. cxd5 {[%clk 0:02:34]}  exd5 {[%clk 0:02:24]} 16. d4 {[%clk 0:02:34]}  cxd4 {[%clk 0:02:11]} 17. Nxd4 {[%clk 0:02:35]}  Nxd4 {[%clk 0:02:10]} 18. exd4 {[%clk 0:02:36]}  Be6 {[%clk 0:02:05]} 19. Rae1 {[%clk 0:02:22]}  Bf7 {[%clk 0:02:05]} 20. Ba3 {[%clk 0:02:15]}  Bf6 {[%clk 0:01:35]} 21. Re5 {[%clk 0:02:10]}  Bxe5 {[%clk 0:01:17]} 22. fxe5 {[%clk 0:02:05]}  Kg7 {[%clk 0:01:16]} 23. e6 {[%clk 0:01:47]}  Bg8 {[%clk 0:01:12]} 24. Re1 {[%clk 0:01:33]}  Rc8 {[%clk 0:01:02]} 25. Nxd5 {[%clk 0:01:33]}  Nxd5 {[%clk 0:00:58]} 26. e7 {[%clk 0:01:22]}  Nxe7 {[%clk 0:00:56]} 27. Bxe7 {[%clk 0:01:22]}  Qc7 {[%clk 0:00:49]} 28. d5 {[%clk 0:01:04]}  Qxg3 {[%clk 0:00:39]} 29. d6 {[%clk 0:01:05]}  Rcd8 {[%clk 0:00:14]} 30. Bxd8 {[%clk 0:00:41]}  Rxd8 {[%clk 0:00:14]} 31. Qd4+ {[%clk 0:00:38]}  Kf7 {[%clk 0:00:05]} 32. Re7+ {[%clk 0:00:37]} 1-0


[Site "https://www.chess.com"]

[Event "Titled Tuesday Blitz March 28 Early 2023"]
[White "Svane, Rasmus"]
[Black "Aradhya, Garg"]
[WhiteFideId "4657101"]
[BlackFideId "25006746"]
[WhiteElo "2597"]
[BlackElo "2263"]
[Result "0-1"]
[Round "08"]
[TimeControl "180+2"]
[Date "2023.03.28"]
[WhiteClock "0:00:06"]
[BlackClock "0:00:39"]

1. Nf3 {[%clk 0:03:00]}  d5 {[%clk 0:02:58]} 2. g3 {[%clk 0:03:01]}  c5 {[%clk 0:02:58]} 3. Bg2 {[%clk 0:03:02]}  Nf6 {[%clk 0:02:58]} 4. O-O {[%clk 0:03:02]}  g6 {[%clk 0:02:59]} 5. d4 {[%clk 0:03:01]}  cxd4 {[%clk 0:02:58]} 6. Nxd4 {[%clk 0:03:02]}  Bg7 {[%clk 0:02:59]} 7. Nb3 {[%clk 0:03:03]}  O-O {[%clk 0:02:56]} 8. Nc3 {[%clk 0:03:04]}  e6 {[%clk 0:02:57]} 9. e4 {[%clk 0:03:03]}  Nc6 {[%clk 0:02:50]} 10. exd5 {[%clk 0:02:45]}  exd5 {[%clk 0:02:47]} 11. Be3 {[%clk 0:02:40]}  Be6 {[%clk 0:02:38]} 12. Re1 {[%clk 0:02:36]}  Rc8 {[%clk 0:02:32]} 13. Bd4 {[%clk 0:02:28]}  Nxd4 {[%clk 0:02:10]} 14. Nxd4 {[%clk 0:02:29]}  Bg4 {[%clk 0:02:10]} 15. Qd3 {[%clk 0:02:27]}  Qb6 {[%clk 0:02:07]} 16. Rab1 {[%clk 0:02:02]}  Rfd8 {[%clk 0:01:59]} 17. h3 {[%clk 0:01:36]}  Bd7 {[%clk 0:01:57]} 18. Nce2 {[%clk 0:01:36]}  Ne4 {[%clk 0:01:53]} 19. c3 {[%clk 0:01:34]}  Re8 {[%clk 0:01:41]} 20. Red1 {[%clk 0:01:23]}  Bf5 {[%clk 0:01:37]} 21. Nxf5 {[%clk 0:00:40]}  Nxf2 {[%clk 0:01:30]} 22. Qf3 {[%clk 0:00:25]}  Nxd1+ {[%clk 0:01:26]} 23. Kh2 {[%clk 0:00:24]}  Ne3 {[%clk 0:01:08]} 24. Nxg7 {[%clk 0:00:22]}  Kxg7 {[%clk 0:01:08]} 25. Bh1 {[%clk 0:00:16]}  Qf6 {[%clk 0:00:59]} 26. Nf4 {[%clk 0:00:14]}  d4 {[%clk 0:01:00]} 27. Re1 {[%clk 0:00:10]}  dxc3 {[%clk 0:00:57]} 28. bxc3 {[%clk 0:00:05]}  Rxc3 {[%clk 0:00:55]} 29. Re2 {[%clk 0:00:06]}  h5 {[%clk 0:00:42]} 30. Rf2 {[%clk 0:00:06]}  Ng4+ {[%clk 0:00:40]} 31. Qxg4 {[%clk 0:00:06]}  hxg4 {[%clk 0:00:39]} 32. Ne6+ {[%clk 0:00:06]} 0-1


[Site "https://www.chess.com"]

[Event "Titled Tuesday Blitz March 28 Early 2023"]
[White "Vidit, Santosh Gujrathi"]
[Black "Gabrielian, Artur"]
[WhiteFideId "5029465"]
[BlackFideId "4131002"]
[WhiteElo "2651"]
[BlackElo "2432"]
[Result "1-0"]
[Round "08"]
[TimeControl "180+2"]
[Date "2023.03.28"]
[WhiteClock "0:01:26"]
[BlackClock "0:00:17"]

1. c4 {[%clk 0:03:00]}  Nf6 {[%clk 0:02:59]} 2. Nc3 {[%clk 0:03:00]}  g6 {[%clk 0:02:59]} 3. e4 {[%clk 0:03:00]}  d6 {[%clk 0:02:59]} 4. d4 {[%clk 0:03:00]}  Bg7 {[%clk 0:03:00]} 5. Nf3 {[%clk 0:03:01]}  O-O {[%clk 0:03:00]} 6. Be2 {[%clk 0:03:02]}  e5 {[%clk 0:03:00]} 7. O-O {[%clk 0:03:02]}  h6 {[%clk 0:03:00]} 8. Re1 {[%clk 0:03:00]}  Nc6 {[%clk 0:02:58]} 9. d5 {[%clk 0:02:59]}  Ne7 {[%clk 0:02:58]} 10. b4 {[%clk 0:02:58]}  a5 {[%clk 0:02:57]} 11. bxa5 {[%clk 0:02:58]}  Nd7 {[%clk 0:02:55]} 12. Nd2 {[%clk 0:02:51]}  f5 {[%clk 0:02:54]} 13. Nb3 {[%clk 0:02:46]}  Nf6 {[%clk 0:02:52]} 14. exf5 {[%clk 0:02:46]}  gxf5 {[%clk 0:02:51]} 15. c5 {[%clk 0:02:45]}  f4 {[%clk 0:02:45]} 16. cxd6 {[%clk 0:02:41]}  cxd6 {[%clk 0:02:45]} 17. Bd3 {[%clk 0:02:40]}  Bf5 {[%clk 0:02:42]} 18. Ba3 {[%clk 0:02:39]}  Kh8 {[%clk 0:02:39]} 19. Rc1 {[%clk 0:02:34]}  Rg8 {[%clk 0:02:38]} 20. Nb5 {[%clk 0:02:31]}  e4 {[%clk 0:02:11]} 21. Nxd6 {[%clk 0:02:30]}  Kh7 {[%clk 0:01:04]} 22. Nxf5 {[%clk 0:01:58]}  Nxf5 {[%clk 0:01:03]} 23. Rxe4 {[%clk 0:01:57]}  Nxe4 {[%clk 0:00:50]} 24. Bxe4 {[%clk 0:01:58]}  Qg5 {[%clk 0:00:48]} 25. h4 {[%clk 0:01:57]}  Qf6 {[%clk 0:00:38]} 26. Qh5 {[%clk 0:01:52]}  Raf8 {[%clk 0:00:36]} 27. Bxf8 {[%clk 0:01:51]}  Rxf8 {[%clk 0:00:35]} 28. Nc5 {[%clk 0:01:39]}  Kh8 {[%clk 0:00:31]} 29. Nd7 {[%clk 0:01:36]}  Qb2 {[%clk 0:00:30]} 30. Rb1 {[%clk 0:01:36]}  Ng3 {[%clk 0:00:21]} 31. Rxb2 {[%clk 0:01:27]}  Nxh5 {[%clk 0:00:20]} 32. Nxf8 {[%clk 0:01:26]}  Bxb2 {[%clk 0:00:20]} 33. d6 {[%clk 0:01:27]}  Bf6 {[%clk 0:00:17]} 34. Bxb7 {[%clk 0:01:26]} 1-0


[Site "https://www.chess.com"]

[Event "Titled Tuesday Blitz March 28 Early 2023"]
[White "Ohanyan, Emin"]
[Black "Bluebaum, Matthias"]
[WhiteFideId "13312022"]
[BlackFideId "24651516"]
[WhiteElo "2402"]
[BlackElo "2638"]
[Result "0-1"]
[Round "08"]
[TimeControl "180+2"]
[Date "2023.03.28"]
[WhiteClock "0:00:02"]
[BlackClock "0:00:08"]

1. e4 {[%clk 0:03:00]}  e6 {[%clk 0:03:00]} 2. d4 {[%clk 0:03:01]}  d5 {[%clk 0:03:00]} 3. Bd3 {[%clk 0:03:01]}  dxe4 {[%clk 0:03:01]} 4. Bxe4 {[%clk 0:03:02]}  Nf6 {[%clk 0:03:01]} 5. Bf3 {[%clk 0:03:02]}  c5 {[%clk 0:03:02]} 6. Ne2 {[%clk 0:03:02]}  Be7 {[%clk 0:03:02]} 7. Be3 {[%clk 0:02:58]}  O-O {[%clk 0:03:01]} 8. O-O {[%clk 0:02:59]}  Nc6 {[%clk 0:02:55]} 9. dxc5 {[%clk 0:02:56]}  Ne5 {[%clk 0:02:49]} 10. Nd2 {[%clk 0:02:56]}  Qc7 {[%clk 0:02:45]} 11. b4 {[%clk 0:02:46]}  Rd8 {[%clk 0:02:44]} 12. Qc1 {[%clk 0:02:40]}  Nxf3+ {[%clk 0:02:29]} 13. Nxf3 {[%clk 0:02:41]}  e5 {[%clk 0:02:29]} 14. h3 {[%clk 0:02:35]}  Nd5 {[%clk 0:02:28]} 15. Bd2 {[%clk 0:02:27]}  b6 {[%clk 0:02:11]} 16. c4 {[%clk 0:02:21]}  Nf6 {[%clk 0:02:11]} 17. cxb6 {[%clk 0:02:18]}  axb6 {[%clk 0:02:12]} 18. c5 {[%clk 0:00:59]}  bxc5 {[%clk 0:02:04]} 19. b5 {[%clk 0:01:00]}  Bb7 {[%clk 0:02:01]} 20. Be3 {[%clk 0:00:46]}  Bxf3 {[%clk 0:01:58]} 21. gxf3 {[%clk 0:00:46]}  Qd7 {[%clk 0:01:59]} 22. Qc4 {[%clk 0:00:38]}  Qxh3 {[%clk 0:01:53]} 23. Ng3 {[%clk 0:00:39]}  h5 {[%clk 0:01:36]} 24. Rfd1 {[%clk 0:00:19]}  h4 {[%clk 0:01:12]} 25. Qf1 {[%clk 0:00:19]}  Qe6 {[%clk 0:01:10]} 26. Ne4 {[%clk 0:00:18]}  Nxe4 {[%clk 0:01:07]} 27. fxe4 {[%clk 0:00:19]}  Qg4+ {[%clk 0:01:07]} 28. Kh2 {[%clk 0:00:16]}  Qxe4 {[%clk 0:01:07]} 29. Rxd8+ {[%clk 0:00:15]}  Bxd8 {[%clk 0:01:02]} 30. Qg2 {[%clk 0:00:15]}  Qxg2+ {[%clk 0:00:54]} 31. Kxg2 {[%clk 0:00:16]}  Ra4 {[%clk 0:00:36]} 32. Bxc5 {[%clk 0:00:06]}  g5 {[%clk 0:00:36]} 33. b6 {[%clk 0:00:06]}  Ra5 {[%clk 0:00:28]} 34. Rd1 {[%clk 0:00:04]}  Bf6 {[%clk 0:00:27]} 35. Bd6 {[%clk 0:00:02]}  Rb5 {[%clk 0:00:27]} 36. Bc7 {[%clk 0:00:02]}  e4 {[%clk 0:00:17]} 37. a4 {[%clk 0:00:02]}  Rb2 {[%clk 0:00:18]} 38. Re1 {[%clk 0:00:02]}  Bd4 {[%clk 0:00:16]} 39. a5 {[%clk 0:00:02]}  e3 {[%clk 0:00:15]} 40. Rf1 {[%clk 0:00:01]}  g4 {[%clk 0:00:14]} 41. Kg1 {[%clk 0:00:01]}  e2 {[%clk 0:00:09]} 42. Re1 {[%clk 0:00:01]}  Bc3 {[%clk 0:00:09]} 43. Rxe2 {[%clk 0:00:01]}  Rxe2 {[%clk 0:00:10]} 44. a6 {[%clk 0:00:02]}  Ra2 {[%clk 0:00:08]} 45. a7 {[%clk 0:00:03]}  Bd4 {[%clk 0:00:08]} 46. Kf1 {[%clk 0:00:02]}  h3 {[%clk 0:00:08]} 47. b7 {[%clk 0:00:02]}  Bxa7 {[%clk 0:00:08]} 0-1


[Site "https://www.chess.com"]

[Event "Titled Tuesday Blitz March 28 Early 2023"]
[White "Martinez Alcantara, Jose Eduardo"]
[Black "Boyer, Mahel"]
[WhiteFideId "3805662"]
[BlackFideId "45102422"]
[WhiteElo "2712"]
[BlackElo "2439"]
[Result "1-0"]
[Round "08"]
[TimeControl "180+2"]
[Date "2023.03.28"]
[WhiteClock "0:01:26"]
[BlackClock "0:00:02"]

1. e4 {[%clk 0:03:00]}  e6 {[%clk 0:02:52]} 2. d4 {[%clk 0:03:00]}  d5 {[%clk 0:02:49]} 3. Nd2 {[%clk 0:03:01]}  c5 {[%clk 0:02:49]} 4. Ngf3 {[%clk 0:03:00]}  a6 {[%clk 0:02:49]} 5. c3 {[%clk 0:03:00]}  Nc6 {[%clk 0:02:32]} 6. Bd3 {[%clk 0:02:59]}  cxd4 {[%clk 0:02:28]} 7. cxd4 {[%clk 0:03:00]}  dxe4 {[%clk 0:02:29]} 8. Nxe4 {[%clk 0:03:00]}  Nf6 {[%clk 0:02:29]} 9. O-O {[%clk 0:02:59]}  Be7 {[%clk 0:02:27]} 10. a3 {[%clk 0:02:59]}  O-O {[%clk 0:02:27]} 11. Re1 {[%clk 0:02:58]}  b6 {[%clk 0:02:25]} 12. Nxf6+ {[%clk 0:02:57]}  Bxf6 {[%clk 0:02:24]} 13. Bxh7+ {[%clk 0:02:51]}  Kxh7 {[%clk 0:02:25]} 14. Qc2+ {[%clk 0:02:51]}  Kg8 {[%clk 0:02:23]} 15. Qxc6 {[%clk 0:02:52]}  Bd7 {[%clk 0:02:15]} 16. Qe4 {[%clk 0:02:48]}  Rc8 {[%clk 0:02:12]} 17. Ne5 {[%clk 0:02:45]}  Bxe5 {[%clk 0:02:07]} 18. dxe5 {[%clk 0:02:46]}  Bc6 {[%clk 0:02:07]} 19. Qg4 {[%clk 0:02:46]}  Qd3 {[%clk 0:02:06]} 20. Be3 {[%clk 0:02:43]}  Bd5 {[%clk 0:01:33]} 21. Rad1 {[%clk 0:02:35]}  Qc2 {[%clk 0:01:22]} 22. Rd4 {[%clk 0:02:30]}  Rfd8 {[%clk 0:00:42]} 23. Qg3 {[%clk 0:02:17]}  Rc4 {[%clk 0:00:36]} 24. Rd2 {[%clk 0:02:10]}  Qe4 {[%clk 0:00:30]} 25. f3 {[%clk 0:02:07]}  Qf5 {[%clk 0:00:25]} 26. Bxb6 {[%clk 0:02:07]}  Rb8 {[%clk 0:00:24]} 27. Be3 {[%clk 0:02:07]}  Rb3 {[%clk 0:00:22]} 28. Bh6 {[%clk 0:01:58]}  Qh7 {[%clk 0:00:20]} 29. Bg5 {[%clk 0:01:47]}  Rc2 {[%clk 0:00:20]} 30. Rxc2 {[%clk 0:01:35]}  Qxc2 {[%clk 0:00:21]} 31. Rc1 {[%clk 0:01:35]}  Qxb2 {[%clk 0:00:10]} 32. Bh6 {[%clk 0:01:27]}  Qd4+ {[%clk 0:00:09]} 33. Kh1 {[%clk 0:01:27]}  g6 {[%clk 0:00:04]} 34. Bg5 {[%clk 0:01:28]}  Qd3 {[%clk 0:00:02]} 35. Rc8+ {[%clk 0:01:26]} 1-0


[Site "https://www.chess.com"]

[Event "Titled Tuesday Blitz March 28 Early 2023"]
[White "Dzhumagaliev, Yan"]
[Black "Makarian, Rudik"]
[WhiteFideId "24100110"]
[BlackFideId "44105681"]
[WhiteElo "2476"]
[BlackElo "2436"]
[Result "0-1"]
[Round "08"]
[TimeControl "180+2"]
[Date "2023.03.28"]
[WhiteClock "0:00:04"]
[BlackClock "0:00:01"]

1. Nf3 {[%clk 0:03:00]}  Nf6 {[%clk 0:03:00]} 2. d4 {[%clk 0:03:01]}  c5 {[%clk 0:02:59]} 3. d5 {[%clk 0:03:00]}  b5 {[%clk 0:03:00]} 4. Na3 {[%clk 0:02:55]}  a6 {[%clk 0:02:50]} 5. c4 {[%clk 0:02:44]}  b4 {[%clk 0:02:50]} 6. Nc2 {[%clk 0:02:44]}  a5 {[%clk 0:02:49]} 7. g3 {[%clk 0:02:42]}  g6 {[%clk 0:02:49]} 8. Bg2 {[%clk 0:02:41]}  Bg7 {[%clk 0:02:50]} 9. O-O {[%clk 0:02:42]}  O-O {[%clk 0:02:50]} 10. Nfe1 {[%clk 0:02:42]}  d6 {[%clk 0:02:49]} 11. e4 {[%clk 0:02:37]}  Ra7 {[%clk 0:02:38]} 12. h3 {[%clk 0:02:35]}  e5 {[%clk 0:02:37]} 13. b3 {[%clk 0:02:25]}  h5 {[%clk 0:02:34]} 14. a3 {[%clk 0:02:20]}  Ra6 {[%clk 0:02:19]} 15. Nd3 {[%clk 0:02:13]}  h4 {[%clk 0:02:13]} 16. g4 {[%clk 0:02:12]}  Nh7 {[%clk 0:02:12]} 17. Be3 {[%clk 0:02:05]}  Qe7 {[%clk 0:02:02]} 18. Qd2 {[%clk 0:02:04]}  Kh8 {[%clk 0:01:46]} 19. axb4 {[%clk 0:02:03]}  axb4 {[%clk 0:01:44]} 20. Rxa6 {[%clk 0:02:04]}  Nxa6 {[%clk 0:01:45]} 21. Ra1 {[%clk 0:01:57]}  f5 {[%clk 0:01:34]} 22. f3 {[%clk 0:01:36]}  Bf6 {[%clk 0:01:16]} 23. Ra5 {[%clk 0:01:17]}  Bg5 {[%clk 0:01:10]} 24. Rb5 {[%clk 0:01:01]}  f4 {[%clk 0:00:50]} 25. Bf2 {[%clk 0:00:59]}  Qc7 {[%clk 0:00:51]} 26. Ncxb4 {[%clk 0:00:26]}  Nxb4 {[%clk 0:00:40]} 27. Nxb4 {[%clk 0:00:26]}  cxb4 {[%clk 0:00:41]} 28. Qxb4 {[%clk 0:00:27]}  Be7 {[%clk 0:00:40]} 29. Ra5 {[%clk 0:00:18]}  Bb7 {[%clk 0:00:27]} 30. Ra7 {[%clk 0:00:18]}  Rb8 {[%clk 0:00:28]} 31. Bb6 {[%clk 0:00:17]}  Qd7 {[%clk 0:00:27]} 32. Qa5 {[%clk 0:00:17]}  Qc8 {[%clk 0:00:19]} 33. Bf1 {[%clk 0:00:15]}  Ng5 {[%clk 0:00:16]} 34. Kg2 {[%clk 0:00:15]}  Nf7 {[%clk 0:00:15]} 35. b4 {[%clk 0:00:16]}  Bd8 {[%clk 0:00:12]} 36. c5 {[%clk 0:00:16]}  Bxb6 {[%clk 0:00:09]} 37. Qxb6 {[%clk 0:00:15]}  Bxd5 {[%clk 0:00:09]} 38. Qc7 {[%clk 0:00:08]}  Qxc7 {[%clk 0:00:07]} 39. Rxc7 {[%clk 0:00:09]}  dxc5 {[%clk 0:00:05]} 40. exd5 {[%clk 0:00:08]}  Ng5 {[%clk 0:00:05]} 41. bxc5 {[%clk 0:00:08]}  Rb2+ {[%clk 0:00:06]} 42. Be2 {[%clk 0:00:07]}  Rxe2+ {[%clk 0:00:05]} 43. Kf1 {[%clk 0:00:08]}  Rd2 {[%clk 0:00:04]} 44. Rd7 {[%clk 0:00:08]}  e4 {[%clk 0:00:04]} 45. fxe4 {[%clk 0:00:03]}  f3 {[%clk 0:00:04]} 46. c6 {[%clk 0:00:03]}  Nxe4 {[%clk 0:00:02]} 47. Rd8+ {[%clk 0:00:03]}  Kg7 {[%clk 0:00:02]} 48. Rd7+ {[%clk 0:00:03]}  Kh6 {[%clk 0:00:02]} 49. Rh7+ {[%clk 0:00:03]}  Kxh7 {[%clk 0:00:02]} 50. c7 {[%clk 0:00:04]}  Rd1# {[%clk 0:00:01]} 0-1


[Site "https://www.chess.com"]

[Event "Titled Tuesday Blitz March 28 Early 2023"]
[White "Xu, Xiangyu"]
[Black "Galchenko, Matvey"]
[WhiteFideId "8608288"]
[BlackFideId "24175480"]
[WhiteElo "2477"]
[BlackElo "2404"]
[Result "1-0"]
[Round "08"]
[TimeControl "180+2"]
[Date "2023.03.28"]
[WhiteClock "0:01:45"]
[BlackClock "0:00:05"]

1. d4 {[%clk 0:03:00]}  d5 {[%clk 0:02:58]} 2. c4 {[%clk 0:03:00]}  e6 {[%clk 0:02:59]} 3. Nf3 {[%clk 0:03:00]}  c6 {[%clk 0:02:59]} 4. g3 {[%clk 0:02:59]}  dxc4 {[%clk 0:02:58]} 5. Bg2 {[%clk 0:03:00]}  b5 {[%clk 0:02:59]} 6. a4 {[%clk 0:02:59]}  Bb7 {[%clk 0:02:58]} 7. b3 {[%clk 0:02:58]}  cxb3 {[%clk 0:02:57]} 8. Qxb3 {[%clk 0:02:59]}  b4 {[%clk 0:02:57]} 9. O-O {[%clk 0:02:58]}  Nf6 {[%clk 0:02:57]} 10. Ne5 {[%clk 0:02:58]}  Be7 {[%clk 0:02:57]} 11. Bb2 {[%clk 0:02:57]}  O-O {[%clk 0:02:56]} 12. Nd2 {[%clk 0:02:58]}  a5 {[%clk 0:02:50]} 13. Rac1 {[%clk 0:02:57]}  Nd5 {[%clk 0:02:49]} 14. Ne4 {[%clk 0:02:54]}  f6 {[%clk 0:01:37]} 15. Nd3 {[%clk 0:02:53]}  Nd7 {[%clk 0:01:36]} 16. Nf4 {[%clk 0:02:54]}  Nxf4 {[%clk 0:01:14]} 17. gxf4 {[%clk 0:02:55]}  Kh8 {[%clk 0:01:10]} 18. Qxe6 {[%clk 0:02:54]}  Re8 {[%clk 0:01:10]} 19. Rfd1 {[%clk 0:02:42]}  Bf8 {[%clk 0:01:06]} 20. Qb3 {[%clk 0:02:39]}  Rc8 {[%clk 0:01:02]} 21. e3 {[%clk 0:02:39]}  Qb6 {[%clk 0:00:56]} 22. Nc5 {[%clk 0:02:39]}  Nxc5 {[%clk 0:00:52]} 23. dxc5 {[%clk 0:02:39]}  Bxc5 {[%clk 0:00:46]} 24. Rd7 {[%clk 0:02:39]}  Re7 {[%clk 0:00:42]} 25. Rcd1 {[%clk 0:02:08]}  Rce8 {[%clk 0:00:28]} 26. Rxe7 {[%clk 0:01:52]}  Bxe7 {[%clk 0:00:27]} 27. Qf7 {[%clk 0:01:49]}  Rd8 {[%clk 0:00:27]} 28. Rd7 {[%clk 0:01:45]}  Rxd7 {[%clk 0:00:04]} 29. Qe8+ {[%clk 0:01:45]}  Bf8 {[%clk 0:00:05]} 30. Qxf8# {[%clk 0:01:45]} 1-0


[Site "https://www.chess.com"]

[Event "Titled Tuesday Blitz March 28 Early 2023"]
[White "Drygalov, Andrey"]
[Black "Nagy, Gabor"]
[WhiteFideId "24171735"]
[BlackFideId "737119"]
[WhiteElo "2471"]
[BlackElo "2510"]
[Result "1-0"]
[Round "08"]
[TimeControl "180+2"]
[Date "2023.03.28"]
[WhiteClock "0:00:09"]
[BlackClock "0:00:35"]

1. e4 {[%clk 0:03:00]}  e5 {[%clk 0:02:58]} 2. Nf3 {[%clk 0:03:00]}  d6 {[%clk 0:02:59]} 3. Bc4 {[%clk 0:02:59]}  Nf6 {[%clk 0:02:59]} 4. Ng5 {[%clk 0:02:55]}  d5 {[%clk 0:02:59]} 5. exd5 {[%clk 0:02:55]}  h6 {[%clk 0:02:59]} 6. Nf3 {[%clk 0:02:53]}  e4 {[%clk 0:03:00]} 7. Qe2 {[%clk 0:02:47]}  Be7 {[%clk 0:02:57]} 8. Nd4 {[%clk 0:02:46]}  O-O {[%clk 0:02:57]} 9. O-O {[%clk 0:02:46]}  Re8 {[%clk 0:02:52]} 10. Nc3 {[%clk 0:02:46]}  Bc5 {[%clk 0:02:51]} 11. Nb3 {[%clk 0:02:39]}  Bg4 {[%clk 0:02:50]} 12. Qe1 {[%clk 0:02:39]}  Bb6 {[%clk 0:02:46]} 13. Na4 {[%clk 0:02:33]}  Nbd7 {[%clk 0:02:45]} 14. Nxb6 {[%clk 0:02:19]}  Nxb6 {[%clk 0:02:41]} 15. Bb5 {[%clk 0:02:20]}  Re7 {[%clk 0:02:34]} 16. h3 {[%clk 0:02:15]}  Bh5 {[%clk 0:02:31]} 17. Be2 {[%clk 0:02:02]}  Qxd5 {[%clk 0:02:29]} 18. Bxh5 {[%clk 0:02:00]}  Qxh5 {[%clk 0:02:30]} 19. d4 {[%clk 0:01:58]}  Nbd5 {[%clk 0:02:24]} 20. c3 {[%clk 0:01:56]}  c6 {[%clk 0:02:23]} 21. Be3 {[%clk 0:01:54]}  Rae8 {[%clk 0:02:23]} 22. c4 {[%clk 0:01:49]}  Nb6 {[%clk 0:02:21]} 23. Rc1 {[%clk 0:01:49]}  Nh7 {[%clk 0:02:11]} 24. Qa5 {[%clk 0:01:47]}  Qxa5 {[%clk 0:02:08]} 25. Nxa5 {[%clk 0:01:46]}  f5 {[%clk 0:02:08]} 26. Rfd1 {[%clk 0:01:39]}  Nf6 {[%clk 0:02:03]} 27. Bf4 {[%clk 0:01:34]}  g5 {[%clk 0:02:00]} 28. Be5 {[%clk 0:01:33]}  Nfd7 {[%clk 0:02:01]} 29. Bd6 {[%clk 0:01:32]}  Re6 {[%clk 0:02:01]} 30. Bc7 {[%clk 0:01:32]}  e3 {[%clk 0:01:52]} 31. fxe3 {[%clk 0:01:24]}  Rxe3 {[%clk 0:01:53]} 32. d5 {[%clk 0:01:24]}  cxd5 {[%clk 0:01:53]} 33. cxd5 {[%clk 0:01:07]}  Re2 {[%clk 0:01:48]} 34. Bxb6 {[%clk 0:00:50]}  axb6 {[%clk 0:01:45]} 35. Nxb7 {[%clk 0:00:50]}  Rxb2 {[%clk 0:01:44]} 36. Re1 {[%clk 0:00:50]}  Rxe1+ {[%clk 0:01:36]} 37. Rxe1 {[%clk 0:00:51]}  Nf6 {[%clk 0:01:31]} 38. d6 {[%clk 0:00:47]}  Rxa2 {[%clk 0:01:29]} 39. Re6 {[%clk 0:00:44]}  Ra7 {[%clk 0:01:20]} 40. Nd8 {[%clk 0:00:23]}  Kg7 {[%clk 0:01:14]} 41. Nc6 {[%clk 0:00:20]}  Rd7 {[%clk 0:01:09]} 42. Ne5 {[%clk 0:00:20]}  Rd8 {[%clk 0:01:05]} 43. d7 {[%clk 0:00:20]}  b5 {[%clk 0:00:57]} 44. Re7+ {[%clk 0:00:20]}  Kg8 {[%clk 0:00:58]} 45. Kf1 {[%clk 0:00:16]}  b4 {[%clk 0:00:56]} 46. Ke1 {[%clk 0:00:17]}  b3 {[%clk 0:00:52]} 47. Kd2 {[%clk 0:00:16]}  Ne4+ {[%clk 0:00:44]} 48. Kc1 {[%clk 0:00:16]}  Kf8 {[%clk 0:00:44]} 49. Rf7+ {[%clk 0:00:15]}  Kg8 {[%clk 0:00:45]} 50. Re7 {[%clk 0:00:15]}  Nd6 {[%clk 0:00:44]} 51. Nc6 {[%clk 0:00:10]}  Kf8 {[%clk 0:00:41]} 52. Rh7 {[%clk 0:00:10]}  Nb7 {[%clk 0:00:34]} 53. Nxd8 {[%clk 0:00:10]}  Nxd8 {[%clk 0:00:35]} 54. Kb2 {[%clk 0:00:10]}  f4 {[%clk 0:00:34]} 55. Kxb3 {[%clk 0:00:09]}  Nc6 {[%clk 0:00:35]} 56. Rxh6 {[%clk 0:00:09]} 1-0


[Site "https://www.chess.com"]

[Event "Titled Tuesday Blitz March 28 Early 2023"]
[White "Samunenkov, Ihor"]
[Black "Gukesh D"]
[WhiteFideId "14187086"]
[BlackFideId "46616543"]
[WhiteElo "2457"]
[BlackElo "2612"]
[Result "0-1"]
[Round "08"]
[TimeControl "180+2"]
[Date "2023.03.28"]
[WhiteClock "0:00:02"]
[BlackClock "0:00:39"]

1. d4 {[%clk 0:03:00]}  Nf6 {[%clk 0:02:59]} 2. Nf3 {[%clk 0:03:01]}  d5 {[%clk 0:02:59]} 3. c4 {[%clk 0:03:01]}  e6 {[%clk 0:02:59]} 4. g3 {[%clk 0:03:01]}  dxc4 {[%clk 0:02:58]} 5. Bg2 {[%clk 0:03:01]}  a6 {[%clk 0:02:58]} 6. O-O {[%clk 0:03:00]}  Nc6 {[%clk 0:02:58]} 7. Nbd2 {[%clk 0:03:01]}  b5 {[%clk 0:02:51]} 8. b3 {[%clk 0:03:01]}  c3 {[%clk 0:02:50]} 9. Nb1 {[%clk 0:03:02]}  b4 {[%clk 0:02:50]} 10. a3 {[%clk 0:03:02]}  Rb8 {[%clk 0:02:50]} 11. axb4 {[%clk 0:03:02]}  Bxb4 {[%clk 0:02:50]} 12. Qd3 {[%clk 0:03:03]}  e5 {[%clk 0:02:46]} 13. Nxc3 {[%clk 0:03:00]}  exd4 {[%clk 0:02:46]} 14. Na4 {[%clk 0:02:51]}  O-O {[%clk 0:02:42]} 15. Bb2 {[%clk 0:02:51]}  Bg4 {[%clk 0:02:13]} 16. Rfc1 {[%clk 0:02:18]}  Qd6 {[%clk 0:01:34]} 17. Qxa6 {[%clk 0:01:29]}  Na5 {[%clk 0:01:18]} 18. Qd3 {[%clk 0:00:56]}  Rfe8 {[%clk 0:01:05]} 19. Bxd4 {[%clk 0:00:37]}  Rbd8 {[%clk 0:01:01]} 20. Bxf6 {[%clk 0:00:16]}  Qxf6 {[%clk 0:00:54]} 21. Qb5 {[%clk 0:00:11]}  Rb8 {[%clk 0:00:51]} 22. Qd3 {[%clk 0:00:09]}  Bf5 {[%clk 0:00:50]} 23. Qd1 {[%clk 0:00:04]}  Red8 {[%clk 0:00:50]} 24. Qf1 {[%clk 0:00:04]}  Nxb3 {[%clk 0:00:50]} 25. Rab1 {[%clk 0:00:01]}  Nxc1 {[%clk 0:00:47]} 26. Rxc1 {[%clk 0:00:02]}  Ba3 {[%clk 0:00:39]} 27. Ra1 {[%clk 0:00:01]}  Qxa1 {[%clk 0:00:38]} 28. Qxa1 {[%clk 0:00:02]}  Rb1+ {[%clk 0:00:38]} 29. Qxb1 {[%clk 0:00:02]}  Bxb1 {[%clk 0:00:39]} 0-1


[Site "https://www.chess.com"]